Cogmind - Beta 16.1 --- EXPLORER MODE // 2026.04.15 @ 22:53:37 Player: Krysmphoenix Result: Destroyed by G-34 Mercenary with Small Laser Performance ------------- Evolutions (1) 500 Regions Visited (5) 1000 Robots Destroyed (62) 310 Value Destroyed (1930) 1930 Prototype IDs (7) 140 Alien Tech Used (0) 0 Bonus (200) 200 TOTAL SCORE: 4080 Bonus ------- Entered Garrisons 200 Cogmind --------- Core Integrity 0/400 Matter 300/300 Energy 235/250 System Corruption 0% Temperature Cool (21) Movement Flying (115) Ox1 Location -9/Garrison Parts ------- > --- POWER (1) -------- Ion Engine > --- PROPULSION (3) --- VTOL Module > --- UTILITY (4) ------ Visual Processing Unit Salvage Targeting Computer > --- WEAPON (2) ------- Shock Maul Katana > --- INVENTORY (5) ---- Improved Assault Rifle Katana Peak State ------------ > --- POWER ------------ Light Nuclear Core > --- PROPULSION ------- VTOL Module VTOL Module Improved Flight Unit > --- UTILITY ---------- Visual Processing Unit Salvage Targeting Computer Melee Analysis Suite ECM Suite > --- WEAPON ----------- Shock Maul Katana > --- INVENTORY -------- Flight Unit Flight Unit Flight Unit Flight Unit Katana [Rating: 27] Favorites ----------- Power Light Nuclear Core Engine Light Ion Engine Power Core Light Nuclear Core Propulsion Flight Unit Leg Aluminum Leg Flight Unit Flight Unit Utility ECM Suite Device ECM Suite Processor Melee Analysis Suite Weapon Katana Energy Gun Small Laser Ballistic Gun Light Assault Rifle Impact Weapon Shock Maul Slashing Weapon Katana Build | -11 -10 -10 -9 -9 -9 ------- Run | Yrd Mat Min Mat Sto Gar Slots Evolved 3 | . 1 . 2 . . Power . | . . . . . . Propulsion 1 | . 1 . . . . Utility 2 | . . . 2 . . Weapon . | . . . . . . Parts Attached 44 | 5 9 . 20 7 3 Power 8 | 1 2 . 1 3 1 Engine 4 | 1 . . . 2 1 Core 4 | . 2 . 1 1 . Reactor . | . . . . . . Propulsion 16 | 1 4 . 7 2 2 Treads . | . . . . . . Leg 2 | 1 1 . . . . Wheel . | . . . . . . Hover . | . . . . . . Flight 14 | . 3 . 7 2 2 Utility 9 | 2 1 . 6 . . Device 4 | 1 . . 3 . . Storage . | . . . . . . Processor 5 | 1 1 . 3 . . Hackware . | . . . . . . Protection . | . . . . . . Artifact . | . . . . . . Weapon 11 | 1 2 . 6 2 . Energy Gun 4 | . 1 . 3 . . Energy Cannon . | . . . . . . Ballistic Gun 3 | 1 1 . . 1 . Ballistic Cannon . | . . . . . . Launcher . | . . . . . . Special Weapon . | . . . . . . Impact Weapon 2 | . . . 1 1 . Slashing Weapon 2 | . . . 2 . . Piercing Weapon . | . . . . . . Special Melee Weapon . | . . . . . . Unidentified Prototypes 5 | . . . 3 2 . Parts Lost 13 | . 1 . 3 2 7 Power 2 | . . . 1 . 1 Propulsion 7 | . . . 1 2 4 Utility 3 | . . . 1 . 2 Weapon 1 | . 1 . . . . Highest Loss Streak 6 | . 1 . 1 2 6 To Critical Strikes . | . . . . . . Average Backups 3 | . 1 4 4 4 2 Power . | . 1 2 . . . Propulsion 1 | . . . 2 3 . Utility . | . . 2 . . . Weapon 1 | . . . 1 1 2 Tool/Special . | . . . . . . Unused Backups 2 | . . . 2 . . Power 1 | . . . 1 . . Propulsion . | . . . . . . Utility . | . . . . . . Weapon 1 | . . . 1 . . Tool/Special . | . . . . . . Average Slot Usage (%) 94 | . 87 100 98 97 83 Engine 2 | . 3 . . 4 6 Core 7 | . 8 12 8 4 3 Leg 3 | . 13 . . . . Flight 26 | . 19 37 29 28 24 Device 16 | . 12 12 22 9 4 Processor 18 | . 12 12 17 30 25 Energy Gun 4 | . 2 12 8 . . Ballistic Gun 4 | . 14 12 1 . . Impact Weapon 1 | . . . . 1 10 Slashing Weapon 8 | . . . 8 18 10 Peak Build Rating 27 | 5 11 11 24 27 26 Average Rating 17 | 3 9 11 20 23 20 On Entrance 12 | . 5 11 11 22 26 Avg Prop Armor Cover (%) 3 | . 3 . . . . Naked Turns . | . . . . . . Heaviest Build 13 | 5 8 8 13 13 12 Greatest Support 20 | 10 20 12 15 15 15 Greatest Overweight (x) 1 | . . . . 1 1 Average Overweight (x) . | . . . . . . Largest Inventory Capacity 5 | 5 5 5 5 5 5 Average Capacity 5 | 5 5 5 5 5 5 Most Carried 5 | 3 4 4 5 5 4 Average Carried 3 | . 1 4 4 4 2 Final Capacity 5 | 5 5 5 5 5 5 Final Carried 5 | . 4 4 5 3 2 Class Distribution -------------------- 55% | Hacker-Sprinter 33% | Hacker-Mutant 8% | Scavenger-Sprinter Dominant Class ---------------- Hacker-Mutant | -10/Materials Hacker-Mutant | -10/Mines Hacker-Sprinter | -9/Materials Hacker-Sprinter | -9/Storage Hacker-Mutant | -9/Garrison Resources | -11 -10 -10 -9 -9 -9 ----------- Run | Yrd Mat Min Mat Sto Gar Matter Collected 901 | 223 161 . 322 185 10 Remotely . | . . . . . . Salvage Created 2585 | 53 325 . 1168 771 268 Parts 141 | 2 20 . 74 39 6 Haulers Intercepted . | . . . . . . Recyclers Shooed . | . . . . . . Parts Field Recycled . | . . . . . . Retrieved Matter . | . . . . . . Parts Self-Destructed . | . . . . . . Prevented . | . . . . . . Parts Restored . | . . . . . . Kills | -11 -10 -10 -9 -9 -9 ------- Run | Yrd Mat Min Mat Sto Gar Combat Hostiles Destroyed 55 | . 8 . 25 16 6 Melee 36 | . . . 20 13 3 Guns 13 | . 8 . 5 . . Classes Destroyed 7 | 1 3 . 3 . . Tunneler 1 | . . . 1 . . Recycler 4 | 1 . . 2 1 . Watcher 2 | . 1 . 1 . . Swarmer 12 | . 2 . 7 3 . Grunt 22 | . 6 . 7 7 2 Duelist 1 | . . . 1 . . Sentry 20 | . . . 10 6 4 Best Kill Streak 7 | 1 4 . 7 4 4 Combat Bots Only 5 | . 4 . 5 4 4 Max Kills in Single Turn 1 | 1 1 . 1 1 1 Gunslinging . | . . . . . . Exploded . | . . . . . . Melee 1 | . . . 1 1 1 Uniques/NPCs Destroyed . | . . . . . . Combat | -11 -10 -10 -9 -9 -9 -------- Run | Yrd Mat Min Mat Sto Gar Hostile Shots Fired 240 | . 24 1 103 46 66 Missed 81 | . 6 . 35 21 19 Hits 159 | . 18 1 68 25 47 Projectile 159 | . 18 1 68 25 47 AOE 1 | . . 1 . . . Critical Strikes 3 | . 1 . 2 . . Damage Taken 1468 | . 220 35 546 252 415 Core 491 | . 50 35 172 59 175 Absorbed by Shields . | . . . . . . Ignored by Resistances 905 | . 133 20 339 156 257 Regen/Repaired (Parts) 207 | . 14 . 120 73 . Core Remaining (%) 83 | 100 . 66 . . . Volleys Fired 54 | 4 29 . 21 . . Largest 2 | 1 2 . 2 . . Hottest 96 | 20 60 . 96 . . Shots Fired 84 | 4 44 . 36 . . Gun 84 | 4 44 . 36 . . Cannon . | . . . . . . Launcher . | . . . . . . Special . | . . . . . . Kinetic 51 | 4 35 . 12 . . Thermal 33 | . 9 . 24 . . Explosive . | . . . . . . Electromagnetic . | . . . . . . Robot Hit Streak 26 | 4 15 . 26 . . Robot Miss Streak 2 | . 2 . 1 . . Penetration Max . | . . . . . . Secondary Targets . | . . . . . . Shots Hit Robots 186 | 4 36 . 91 38 17 Core Hits 66 | 3 17 . 33 12 1 Critical Kills 3 | . 1 . . 1 1 Critical Parts Destroyed 7 | . . . . 3 4 Critical Strikes 22 | . 1 . 6 10 5 Burn 1 | . . . 1 . . Destroy 1 | . 1 . . . . Smash 9 | . . . . 4 5 Sever 11 | . . . 5 6 . Melee Attacks 118 | . . . 61 39 18 Impact 31 | . . . 9 6 16 Slashing 87 | . . . 52 33 2 Piercing . | . . . . . . Sneak Attacks 8 | . . . 4 3 1 Combat Hostiles 4 | . . . 2 1 1 Follow-up Attacks 4 | . . . 1 2 1 Damage Inflicted 5112 | 31 301 . 2495 1487 798 Guns 694 | 31 301 . 362 . . Cannons . | . . . . . . Explosions . | . . . . . . Melee 4418 | . . . 2133 1487 798 Ramming . | . . . . . . Kinetic 327 | 31 213 . 83 . . Thermal 367 | . 88 . 279 . . Explosive . | . . . . . . Electromagnetic . | . . . . . . Impact 1449 | . . . 363 319 767 Slashing 2969 | . . . 1770 1168 31 Piercing . | . . . . . . Highest Corruption . | . . . . . . Average Corruption . | . . . . . . Corruption Purged . | . . . . . . Corruption Blocked . | . . . . . . Overload Shots . | . . . . . . Overflow Damage 651 | . . . 155 181 315 Projectiles . | . . . . . . Explosions . | . . . . . . Melee 651 | . . . 155 181 315 Knockbacks 2 | . . . . . 2 Impact 2 | . . . . . 2 Kinetic . | . . . . . . Secondary . | . . . . . . Self-Inflicted Damage . | . . . . . . Shots . | . . . . . . Rammed . | . . . . . . Targets Rammed . | . . . . . . Kicked . | . . . . . . Crushed . | . . . . . . Highest Temperature 258 | . 258 . 24 . 8 Average Temperature 92 | . 108 . 13 . 8 Received Heat Transfer 774 | . 132 . 288 111 243 Siege Activations . | . . . . . . Martial Activations . | . . . . . . Shielding Activations . | . . . . . . Robots Disrupted . | . . . . . . Combat Hostiles . | . . . . . . Robots Corrupted 6 | . . . . 3 3 Combat Hostiles 6 | . . . . 3 3 Parts Fried 13 | . . . 3 4 6 Impact Corruptions 14 | . . . 1 3 10 Robots Melted . | . . . . . . Combat Hostiles . | . . . . . . Parts Melted 4 | . . . 4 . . Heat Transferred 932 | . 200 . 732 . . Parts Sabotaged . | . . . . . . Parts Stolen . | . . . . . . Parts Stripped . | . . . . . . Power Chain Reactions . | . . . . . . Alert | -11 -10 -10 -9 -9 -9 ------- Run | Yrd Mat Min Mat Sto Gar Maximum Alert Level . | . . . . . . Low Security (%) 100 | 100 100 100 100 100 100 Level 1 . | . . . . . . Level 2 . | . . . . . . Level 3 . | . . . . . . Level 4 . | . . . . . . Level 5 . | . . . . . . High Security . | . . . . . . Max Security . | . . . . . . Peak Influence 154 | . 60 . 130 154 140 Initial 65 | . . . . . 65 Average 26 | . 12 . 23 40 103 Influence Increases 1555 | 5 223 . 757 435 135 Destroy 0b10 Robot/C 1100 | . 160 . 500 320 120 Destroy 0b10 Robot/NC 35 | 5 5 . 20 5 . Destroy Leader 284 | . 32 . 162 90 . Successful Hack 61 | . 26 . 15 20 . Partial Spotted 60 | . . . 60 . . Lose Combat Pursuer 15 | . . . . . 15 Influence Decreases 1425 | 5 223 . 757 301 139 Entered New Map 69 | . . . . . 69 Time Decay 1060 | 5 213 . 571 271 . Lost Part 110 | . 10 . 10 20 70 Lost Ally 10 | . . . . 10 . Purge Threat 176 | . . . 176 . . Squads Dispatched 4 | . . . 3 1 . Investigation 1 | . . . 1 . . Extermination . | . . . . . . Reinforcement 3 | . . . 2 1 . Assault . | . . . . . . Garrison . | . . . . . . Intercept . | . . . . . . Searches Triggered . | . . . . . . Construction Impeded . | . . . . . . Haulers Reinforced . | . . . . . . Active Scanning Responses . | . . . . . . Cargo Convoy Interrupts . | . . . . . . Stealth | -11 -10 -10 -9 -9 -9 --------- Run | Yrd Mat Min Mat Sto Gar Distress Signals 1 | . . . 1 . . Communications Jammed . | . . . . . . Distress Signals . | . . . . . . Times Spotted 95 | . 11 11 46 17 10 Peak Tracking Total 22 | . 4 22 5 3 6 Tactical Retreats 8 | . . . 6 1 1 ECM-based Alert Blocks 12 | . . . 11 1 . Traps | -11 -10 -10 -9 -9 -9 ------- Run | Yrd Mat Min Mat Sto Gar Traps Triggered 7 | . 2 . 2 2 1 Indirectly . | . . . . . . Trap Hack Attempts . | . . . . . . Triggered . | . . . . . . Disarmed . | . . . . . . Reprogrammed . | . . . . . . Reused . | . . . . . . Traps Extracted . | . . . . . . Installed . | . . . . . . Triggered . | . . . . . . Machines | -11 -10 -10 -9 -9 -9 ---------- Run | Yrd Mat Min Mat Sto Gar Machines Disabled . | . . . . . . Max in Single Turn . | . . . . . . Machines Repaired . | . . . . . . Machines Dismantled . | . . . . . . Machines Sabotaged . | . . . . . . Overloaded Fab Kills . | . . . . . . Hacking | -11 -10 -10 -9 -9 -9 --------- Run | Yrd Mat Min Mat Sto Gar Machines Accessed 36 | . 10 . 14 12 . Terminals 22 | . 7 . 8 7 . Fabricators . | . . . . . . Repair Stations 5 | . 1 . 2 2 . Recycling Units 6 | . 2 . 2 2 . Scanalyzers 2 | . . . 2 . . Garrison Access 1 | . . . . 1 . Total Hacks 107 | . 27 . 52 28 . Successful 84 | . 22 . 39 23 . Failed 23 | . 5 . 13 5 . Catastrophic 1 | . . . 1 . . Database Lockouts . | . . . . . . Manual 45 | . 14 . 23 8 . Terminals 68 | . 19 . 34 15 . Fabricators . | . . . . . . Repair Stations 19 | . 2 . 9 8 . Recycling Units 12 | . 6 . 4 2 . Scanalyzers 5 | . . . 5 . . Garrison Access 3 | . . . . 3 . Terminal Hacks 18 | . 3 . 10 5 . Record 3 | . 1 . 1 1 . Prototype ID Bank 1 | . . . 1 . . Open Door 4 | . . . . 4 . Branch Access Points 1 | . . . 1 . . Unreport Threat 3 | . . . 3 . . Surveillance Status 1 | . . . 1 . . Recall Reinforcements 1 | . . . 1 . . Recall Assault 1 | . . . 1 . . Hauler Manifests 2 | . 1 . 1 . . Zone Layout 1 | . 1 . . . . Fabricator Hacks . | . . . . . . Repair Station Hacks 19 | . 2 . 9 8 . Scan Component 9 | . 1 . 4 4 . Repair 9 | . 1 . 4 4 . Refit 1 | . . . 1 . . Recycling Unit Hacks 8 | . 4 . 2 2 . Report Inventory 6 | . 2 . 2 2 . Retrieve Components 2 | . 2 . . . . Scanalyzer 4 | . . . 4 . . Retrieve Study 4 | . . . 4 . . Garrison Access Hacks 2 | . . . . 2 . Unlock Access 1 | . . . . 1 . Coupler Status 1 | . . . . 1 . Unauthorized Hacks 33 | . 13 . 14 6 . Terminals 31 | . 13 . 12 6 . Assimilate 3 | . . . 2 1 . Botnet 13 | . 7 . 4 2 . Operators 1 | . 1 . . . . Skim 14 | . 5 . 6 3 . Fabricators . | . . . . . . Repair Stations . | . . . . . . Recycling Units 2 | . . . 2 . . Reject 2 | . . . 2 . . Scanalyzers . | . . . . . . Garrison Access . | . . . . . . Data Cores Recovered . | . . . . . . Used . | . . . . . . Hacking Detections 26 | . 9 . 11 6 . Full Trace Events 1 | . . . 1 . . Feedback Events . | . . . . . . Feedback Blocked . | . . . . . . Robot Schematics Acquired . | . . . . . . Robots Built . | . . . . . . Authchips . | . . . . . . Time . | . . . . . . Total Robot Build Rating . | . . . . . . Part Schematics Acquired . | . . . . . . Parts Built . | . . . . . . Authchips . | . . . . . . Time . | . . . . . . Total Part Build Rating . | . . . . . . Part Studies Acquired 3 | . . . 3 . . Parts Repaired 9 | . 1 . 4 4 . Time 313 | . 26 . 159 128 . Parts Recycled . | . . . . . . Recycled Matter . | . . . . . . Retrieved Matter . | . . . . . . Retrieved Components 12 | . 12 . . . . Parts Scanalyzed . | . . . . . . Part Schematics Acquired . | . . . . . . Parts Damaged . | . . . . . . Bothacking | -11 -10 -10 -9 -9 -9 ------------ Run | Yrd Mat Min Mat Sto Gar Used RIF Installer . | . . . . . . Robots Hacked . | . . . . . . Non-combat . | . . . . . . Combat . | . . . . . . Robot Hacks Applied . | . . . . . . Relay Couplers Released . | . . . . . . Fabnet Peak Effective % . | . . . . . . Robots Rewired . | . . . . . . Allies Hacked . | . . . . . . Hacks Repelled . | . . . . . . Allies | -11 -10 -10 -9 -9 -9 -------- Run | Yrd Mat Min Mat Sto Gar Total Allies 1 | . . . 1 . . Largest Group 1 | . . . 1 1 . Highest-Rated Group 10 | . . . 10 9 . Highest-Rated Ally 10 | . . . 10 9 . Total Orders . | . . . . . . Ally Attacks . | . . . . . . Total Damage . | . . . . . . Kills . | . . . . . . Allies Corrupted . | . . . . . . Allies Melted . | . . . . . . Intel | -11 -10 -10 -9 -9 -9 ------- Run | Yrd Mat Min Mat Sto Gar Active Infowar (turns) 2314 | 20 626 5 1130 425 108 Optics 1179 | . . . 646 425 108 Terrain 965 | 20 626 5 314 . . ECM 1590 | . . . 1129 420 41 Robot Analysis Total . | . . . . . . Derelict Logs Recovered . | . . . . . . Drone Launches . | . . . . . . Drone Recoveries . | . . . . . . Exploration | -11 -10 -10 -9 -9 -9 ------------- Run | Yrd Mat Min Mat Sto Gar Turns Passed 2344 | 44 626 5 1136 425 108 Spaces Moved 2318 | 29 494 15 1307 339 134 Core 10 | 10 . . . . . Treads . | . . . . . . Legs 311 | 19 292 . . . . Wheels . | . . . . . . Hover . | . . . . . . Flight 1997 | . 202 15 1307 339 134 Fastest Speed 30 | 50 34 34 30 30 32 Average Speed 44 | 95 84 34 31 31 35 Slowest Speed 120 | 120 120 34 37 109 115 Overloaded Moves . | . . . . . . Propulsion Burnouts . | . . . . . . Robots Hopped 1 | . . . 1 . . Potential Cave-ins . | . . . . . . Cave-ins Triggered . | . . . . . . Exploration Rate (%) 45 | 4 90 13 96 47 25 Regions Visited 5 Branch Regions 2 Pre-discovered Areas 2 | . 1 . 1 . . Known Exits Taken 5 | 1 1 1 1 1 . Unknown Exits Taken . | . . . . . . Scrap Searched . | . . . . . . Spaces Dug . | . . . . . . Terrain Destroyed . | . . . . . . Melee . | . . . . . . Projectile . | . . . . . . AOE . | . . . . . . Terrain Rammed . | . . . . . . Walls Destroyed . | . . . . . . Machines Disabled . | . . . . . . Actions | -11 -10 -10 -9 -9 -9 --------- Run | Yrd Mat Min Mat Sto Gar Total 3389 | 42 662 14 1907 600 164 Wait 738 | . 114 . 439 176 9 Move 2311 | 28 493 14 1304 338 134 Hop 1 | . . . 1 . . Pick Up 70 | 5 13 . 31 19 2 Fast Attach . | . . . . . . Attach 32 | 5 6 . 10 8 3 Detach . | . . . . . . Swap 37 | . 4 . 22 11 . Drop 35 | . 3 . 20 12 . Fire 54 | 4 29 . 21 . . Melee 111 | . . . 59 36 16 Ram . | . . . . . . Kick . | . . . . . . Crush . | . . . . . . Escape Stasis . | . . . . . . Rewire . | . . . . . . Trap . | . . . . . . Miscellaneous . | . . . . . . Route ------- -11/Scrapyard -10/Materials (discovered 4 exits: *Mat x3 / *Min) -10/Mines -9/Materials (discovered 5 exits: *Mat x3 / *Min / *Sto) -9/Storage (discovered 2 exits: Mat / Gar) -9/Garrison History --------- Turn | Location | Event 10 | -11/Scrapyard | Identified exit to Materials 10 | -11/Scrapyard | Discovered exit to Materials (range 16) 45 | -11/Scrapyard | Entered Materials 45 | -10/Materials | Evolved 1 slot: Propulsion x1 282 | -10/Materials | Identified exit to Materials 282 | -10/Materials | Discovered exit to Materials (range 15) 301 | -10/Materials | Build established: Hacker-Mutant 468 | -10/Materials | Learned location of 1 exit from Storage 490 | -10/Materials | Repaired Flight Unit 517 | -10/Materials | Identified exit to Mines 599 | -10/Materials | Discovered exit to Materials (range 10) 612 | -10/Materials | Learned 4 Subcaves zone layouts 613 | -10/Materials | Learned 2 Storage zone layouts 619 | -10/Materials | Learned location of 2 exits from Materials 660 | -10/Materials | Learned location of Recycling (-9) 671 | -10/Materials | Entered Mines 672 | -10/Mines | Assembled infested the area 673 | -10/Mines | Discovered exit to Materials (range 10) 676 | -10/Mines | Entered Materials 676 | -9/Materials | Evolved 2 slots: Utility x2 677 | -9/Materials | Identified exit to Mines 678 | -9/Materials | Identified exit to Materials 792 | -9/Materials | Identified exit to Storage 792 | -9/Materials | Discovered exit to Storage (range 16) 888 | -9/Materials | Repaired Lgt. Nuclear Core 1069 | -9/Materials | Discovered exit to Materials (range 10) 1401 | -9/Materials | Build established: Hacker-Sprinter 1459 | -9/Materials | Repaired VTOL Module+ 1471 | -9/Materials | Learned location of Mines (-9) 1511 | -9/Materials | Repaired Imp. Medium Laser 1532 | -9/Materials | Learned Storage emergency access door positions 1551 | -9/Materials | Repaired Katana 1624 | -9/Materials | Loaded intel: 26 trap records 1707 | -9/Materials | Learned location of 1 exit from Recycling 1797 | -9/Materials | Learned 2 Materials zone layouts 1812 | -9/Materials | Entered Storage 1812 | -9/Storage | Accompanied by 1 ally 1886 | -9/Storage | Repaired Flight Unit+ 1888 | -9/Storage | Repaired VTOL Module+ 2036 | -9/Storage | Repaired Lgt. Nuclear Core 2097 | -9/Storage | Repaired VTOL Module+ 2151 | -9/Storage | Core integrity fell below 50% 2212 | -9/Storage | Identified exit to Garrison 2237 | -9/Storage | Entered Garrison 2249 | -9/Garrison | Triggered checkpoint 2288 | -9/Garrison | Core integrity fell below 20% 2317 | -9/Garrison | Lost 6 parts (1p3n2u) 2337 | -9/Garrison | Triggered checkpoint 2345 | -9/Garrison | Destroyed by G-34 Mercenary with Small Laser Last Messages --------------- 02305_ Y-45 Defender misfires. 02307_ Acquired 10 matter. 02308_ Y-45 Defender suffers critical hit (Smash). 02308_ Destroyed Hvy. Assault Rifle. 02308_ Destroyed Lgt. Armor Plating. 02308_ Y-45 Defender system corrupted by crushing effect. 02308_ Y-45 Defender misfires. 02309_ Y-45 Defender system terminally corrupted. 02309_ Heat Sink fried. 02309_ Beam Rifle fried. 02309_ Imp. Ion Engine fried. 02337_ Flight Unit+ destroyed. 02342_ Destroyed Imp. Heat Sink. 02342_ G-47 Trooper system corrupted by crushing effect. 02345_ G-47 Trooper knocked back. [Achievement: Just Browsing] Map ----- +----------------------------------------------------+ | ?????????????????????????????????????????????????? | | ?????????????????????????????????????????????????? | | ?????????????????????????????????????????????????? | | ?????????????????????????????????????????????????? | | ?????????????????????????????????????????????????? | | ?????????????????????????????????????????????????? | | ?????????????????????????????????????????????????? | | ?????????????????????????????????????????????????? | | ?????????????????????????????????????????????????? | | ?????????????????????????????????????????????????? | | ???????????????????? ???????????????????????????? | | ???????????????????# ???????????????????????????? | | ??????????????????## ##""""##??##???????????????? | | ??????????????????# ?? ###?????????????? | | ??????????????????# ?? ??????????????? | | ??????????????????# ?? ???????????????? | | ??????????????????# ## #? #???????????????? | | ??????????????????# ## ## #???????????????? | | ??????????????????" "???????????????? | | ??????????????????" ????????????????? | | ??????????????????" ??????????????????? | | ###???????????????" ???????????????????? | | !%###?????????????# ## #??? #???????????????? | | #?????????????# ## ^g## #######?????????? | | # #?????????????# #??????? | | ### #?????????????# @ #??????? | | ??# #?????????????# g ##??????????????? | | ??# #?????????????## ## ## ##???????????????? | | ??# #??????????????# ## #???#????????????????? | | ??# #??????????????# ####g##????????????????????? | | ??# #??????????????# #??? #?????????????????????? | | ### ######?????????# #??? #?????????????????????? | | #?????????# #??? #?????????????????????? | | ## ### #?????????# #??? #?????????????????????? | | ?# %*#?# #?????????# #???g#?????????????????????? | | ?#####?# #?????????# #??? ?????????????????????? | | ???????# ########### #???##?????????????????????? | | ???????# #??????????????????????????? | | ???????# #??????????????????????????? | | ???????## ############??????????????????????????? | | ????????# #?????????????????????????????????????? | | ????????# #?????????????????????????????????????? | | ????????# #?????????????????????????????????????? | | ????????# #?????????????????????????????????????? | | ????????# #?????????????????????????????????????? | | ????????# #?????????????????????????????????????? | | ????????# #?????????????????????????????????????? | | ??????### #?????????????????????????????????????? | | ??????# #?????????????????????????????????????? | | ??????# #?????????????????????????????????????? | +----------------------------------------------------+ Best States ------------- Heat Dissipation 52 Energy Generation 14 Energy Capacity 265 Matter Stores 300 Matter Capacity 300 Sight Range 18 Terrain Scan Range 14 Terrain Scan Density 85 ECM Strength 1 Resistance: KI 35 Resistance: TH 35 Resistance: EX 35 Resistance: EM 35 Resistance: I 35 Resistance: S 35 Resistance: P 35 Evasion (%) 64 Targeting Accuracy 5 Melee Accuracy 5 Salvage Targeting 1 Offensive Hacking 20 Item Schematics ----------------- None Robot Schematics ------------------ None Fabricated ------------ Nothing Repaired ---------- Flight Unit | 30% | -10/Materials Lgt. Nuclear Core | 36% | -9/Materials VTOL Module | 8% | -9/Materials Imp. Medium Laser | 47% | -9/Materials Katana | 64% | -9/Materials Flight Unit | 55% | -9/Storage VTOL Module | 56% | -9/Storage Lgt. Nuclear Core | 28% | -9/Storage VTOL Module | 32% | -9/Storage Studied --------- Flight Unit | -9/Materials | Hacked VTOL Module | -9/Materials | Hacked Katana | -9/Materials | Hacked Alien Tech Used ----------------- None Achievements -------------- Just Browsing Challenges ------------ None Game ------ Seed BombBombSabre Manual? 0 Play Time 00:46:12 Cumulative 26.6 hours Start 2026.04.15 @ 22:06:46 End 2026.04.15 @ 22:53:37 Sessions 1 Manual Loads 0 Difficulty Explorer Special Mode None Game No. 48 Rogue 44 Adventurer 3 Explorer 1 Win Type - Total 1 Types 1/0/0/0/0/0/0/0/0/0 Lore% 24 Gallery% 25 Achievement% 24 Wizard Run 0 Options --------- Layout 1 ASCII 0 Keyboard 0 Movement Numpad Keybinds 0 Fullscreen 2 Font 24/Proggy Map View 50x35 Zoom Use 0% Tactical HUD 1 Map Filters NONE Filters NONE Steam 1 RUN: 69a250d0-9bbf-4374-87a8-dba158ea9793